fUST/lending_fUST_20250910
["ID","MTS","AMOUNT","RATE_DAILY","PERIOD"]
[384516466,1757448652374,-500.0,0.000151,2]
[384516468,1757448652383,-500.85187397,0.000151,2]
[384516470,1757448652392,-500.16427888,0.000151,2]
[384516473,1757448652402,-500.23749209,0.000151,2]
[384516475,1757448652412,-500.20455634,0.000151,2]
[384516477,1757448652421,-500.0828896,0.000151,2]
[384516479,1757448652429,-500.13288124,0.000151,2]
[384516481,1757448652439,-500.52505112,0.000151,2]
[384516483,1757448652448,-500.20497225,0.000151,2]
[384516485,1757448652457,-500.0,0.00015217,2]
[384516487,1757448652467,-248.18442848,0.00015342,2]
[384516489,1757448652476,-618.0,0.00015342,2]
[384516491,1757448652486,-500.0,0.00015342,2]
[384516493,1757448652495,-480.0,0.00015342,2]
[384516495,1757448652504,-480.0,0.00015342,2]
[384516497,1757448652522,-480.0,0.00015342,2]
[384516500,1757448652533,-480.0,0.00015342,2]
[384516502,1757448652542,-480.0,0.00015342,2]
[384516504,1757448652551,-480.0,0.00015342,2]
[384516506,1757448652561,-480.0,0.00015342,2]
[384516508,1757448652571,-589.73,0.00015342,2]
[384516510,1757448652580,-560.34,0.00015342,2]
[384516512,1757448652590,-480.0,0.00015342,2]
[384516514,1757448652599,-480.0,0.00015342,2]
[384516516,1757448652609,-480.0,0.00015342,2]
[384516518,1757448652619,-480.0,0.00015342,2]
[384516520,1757448652628,-490.87,0.00015342,2]
[384516522,1757448652637,-480.0,0.00015342,2]
[384516524,1757448652646,-480.0,0.00015342,2]
[384516526,1757448652656,-638.57,0.00015342,2]
[384516528,1757448652665,-676.04,0.00015342,2]
[384516530,1757448652674,-480.0,0.00015342,2]
[384516532,1757448652684,-746.4,0.00015342,2]
[384516534,1757448652693,-620.39,0.00015342,2]
[384516536,1757448652703,-613.34,0.00015342,2]
[384516538,1757448652712,-480.0,0.00015342,2]
[384516540,1757448652722,-480.0,0.00015342,2]
[384516542,1757448652731,-954.71,0.00015342,2]
[384516544,1757448652740,-480.0,0.00015342,2]
[384516546,1757448652750,-480.0,0.00015342,2]
[384516548,1757448652759,-576.55,0.00015342,2]
[384516550,1757448652769,-480.0,0.00015342,2]
[384516552,1757448652778,-510.33,0.00015342,2]
[384516554,1757448652787,-2503.08,0.00015342,2]
[384516556,1757448652798,-518.77,0.00015342,2]
[384516558,1757448652807,-516.69,0.00015342,2]
[384516560,1757448652817,-480.0,0.00015342,2]
[384516562,1757448652826,-22357.95,0.00015342,2]
[384516581,1757448652988,-480.0,0.00015342,2]
[384516583,1757448652998,-1152.01,0.00015342,2]
[384516585,1757448653008,-557.21,0.00015342,2]
[384516587,1757448653017,-1573.14,0.00015342,2]
[384516589,1757448653026,-985.1,0.00015342,2]
[384516591,1757448653035,-480.0,0.00015342,2]
[384516593,1757448653045,-480.0,0.00015342,2]
[384516595,1757448653054,-660.09,0.00015342,2]
[384516597,1757448653063,-3876.29,0.00015342,2]
[384516599,1757448653073,-480.0,0.00015342,2]
[384516601,1757448653082,-3041.54,0.00015342,2]
[384516603,1757448653091,-1841.66,0.00015342,2]
[384516605,1757448653100,-422.0038296,0.00015342,2]
[384516607,1757448653110,-480.0,0.00015342,2]
[384516609,1757448653121,-480.0,0.00015342,2]
[384516611,1757448653130,-1077.09,0.00015342,2]
[384516613,1757448653139,-2598.11,0.00015342,2]
[384516615,1757448653148,-972.26,0.00015342,2]
[384516617,1757448653159,-732.93,0.00015342,2]
[384516619,1757448653167,-480.0,0.00015342,2]
[384516621,1757448653178,-765.84,0.00015342,2]
[384516623,1757448653188,-931.58,0.00015342,2]
[384516625,1757448653197,-1009.24,0.00015342,2]
[384516627,1757448653207,-480.0,0.00015342,2]
[384516629,1757448653216,-485.88,0.00015342,2]
[384516631,1757448653225,-1432.45,0.00015342,2]
[384516633,1757448653234,-761.17,0.00015342,2]
[384516635,1757448653244,-480.0,0.00015342,2]
[384516637,1757448653254,-577.1,0.00015342,2]
[384516639,1757448653264,-1808.68,0.00015342,2]
[384516641,1757448653272,-9732.68,0.00015342,2]
[384516643,1757448653282,-2826.09,0.00015342,2]
[384516645,1757448653291,-480.0,0.00015342,2]
[384516647,1757448653300,-557.6,0.00015342,2]
[384516649,1757448653309,-480.0,0.00015342,2]
[384516651,1757448653319,-534.79,0.00015342,2]
[384516653,1757448653328,-488.58,0.00015342,2]
[384516655,1757448653337,-2529.76,0.00015342,2]
[384516657,1757448653346,-480.0,0.00015342,2]
[384516659,1757448653355,-1325.34,0.00015342,2]
[384516661,1757448653365,-625.4,0.00015342,2]
[384516663,1757448653374,-480.0,0.00015342,2]
[384516665,1757448653383,-1580.15,0.00015342,2]
[384516667,1757448653392,-5386.26,0.00015342,2]
[384516669,1757448653402,-601.49,0.00015342,2]
[384516671,1757448653412,-480.0,0.00015342,2]
[384516673,1757448653421,-480.0,0.00015342,2]
[384516675,1757448653430,-480.0,0.00015342,2]
[384516677,1757448653440,-729.92,0.00015342,2]
[384516679,1757448653450,-2409.72,0.00015342,2]
[384516681,1757448653460,-1317.06,0.00015342,2]
[384516683,1757448653469,-741.56,0.00015342,2]
[384516686,1757448653480,-480.0,0.00015342,2]
[384516688,1757448653489,-1043.82,0.00015342,2]
[384516690,1757448653498,-3463.14,0.00015342,2]
[384516692,1757448653508,-644.34,0.00015342,2]
[384516694,1757448653517,-2320.27,0.00015342,2]
[384516696,1757448653526,-1065.39,0.00015342,2]
[384516698,1757448653535,-722.49,0.00015342,2]
[384516700,1757448653547,-682.5,0.00015342,2]
[384516702,1757448653568,-480.0,0.00015342,2]
[384516704,1757448653578,-699.17,0.00015342,2]
[384516706,1757448653587,-876.83,0.00015342,2]
[384516708,1757448653597,-782.37,0.00015342,2]
[384516710,1757448653607,-1994.74,0.00015342,2]
[384516712,1757448653616,-480.0,0.00015342,2]
[384516714,1757448653627,-832.33,0.00015342,2]
[384516716,1757448653637,-720.0,0.00015368,2]
[384516718,1757448653647,-3000.0,0.0001541,2]
[384516720,1757448653657,-160.0,0.00015419,5]
[384516722,1757448653667,-260.0,0.00015494,2]
[384516724,1757448653678,-1370.0,0.000156,4]
[384516726,1757448653691,-618.0,0.00015616,2]
[384516728,1757448653701,-500.0,0.00015616,2]
[384516730,1757448653710,-480.0,0.00015616,2]
[384516732,1757448653720,-480.0,0.00015616,2]
[384516734,1757448653731,-480.0,0.00015616,2]
[384516736,1757448653741,-412.47261092,0.00015616,2]
[384516738,1757448653750,-480.0,0.00015616,2]
[384516741,1757448653762,-480.0,0.00015616,2]
[384516743,1757448653771,-480.0,0.00015616,2]
[384516745,1757448653781,-589.73,0.00015616,2]
[384516747,1757448653790,-560.34,0.00015616,2]
[384516749,1757448653800,-480.0,0.00015616,2]
[384516751,1757448653809,-480.0,0.00015616,2]
[384516753,1757448653819,-480.0,0.00015616,2]
[384516755,1757448653829,-480.0,0.00015616,2]
[384516757,1757448653839,-490.87,0.00015616,2]
[384516759,1757448653848,-480.0,0.00015616,2]
[384516761,1757448653857,-480.0,0.00015616,2]
[384516763,1757448653866,-638.57,0.00015616,2]
[384516765,1757448653875,-676.04,0.00015616,2]
[384516767,1757448653885,-480.0,0.00015616,2]
[384516769,1757448653895,-746.4,0.00015616,2]
[384516771,1757448653904,-620.39,0.00015616,2]
[384516773,1757448653914,-613.34,0.00015616,2]
[384516774,1757448653923,-480.0,0.00015616,2]
[384516776,1757448653933,-480.0,0.00015616,2]
[384516778,1757448653942,-954.71,0.00015616,2]
[384516780,1757448653951,-480.0,0.00015616,2]
[384516782,1757448653960,-480.0,0.00015616,2]
[384516784,1757448653970,-576.55,0.00015616,2]
[384516786,1757448653979,-480.0,0.00015616,2]
[384516788,1757448653988,-510.33,0.00015616,2]
[384516790,1757448653998,-2503.08,0.00015616,2]
[384516792,1757448654008,-518.77,0.00015616,2]
[384516794,1757448654018,-516.69,0.00015616,2]
[384516796,1757448654027,-480.0,0.00015616,2]
[384516798,1757448654036,-22357.95,0.00015616,2]
[384516800,1757448654046,-480.0,0.00015616,2]
[384516802,1757448654055,-1152.01,0.00015616,2]
[384516804,1757448654064,-557.21,0.00015616,2]
[384516806,1757448654073,-1573.14,0.00015616,2]
[384516808,1757448654083,-985.1,0.00015616,2]
[384516810,1757448654092,-480.0,0.00015616,2]
[384516812,1757448654101,-480.0,0.00015616,2]
[384516814,1757448654110,-660.09,0.00015616,2]
[384516816,1757448654119,-3876.29,0.00015616,2]
[384516818,1757448654129,-480.0,0.00015616,2]
[384516820,1757448654138,-3041.54,0.00015616,2]
[384516822,1757448654148,-1841.66,0.00015616,2]
[384516824,1757448654157,-480.0,0.00015616,2]
[384516826,1757448654167,-480.0,0.00015616,2]
[384516828,1757448654175,-1077.09,0.00015616,2]
[384516830,1757448654185,-2598.11,0.00015616,2]
[384516832,1757448654194,-972.26,0.00015616,2]
[384516834,1757448654205,-732.93,0.00015616,2]
[384516836,1757448654215,-480.0,0.00015616,2]
[384516839,1757448654225,-765.84,0.00015616,2]
[384516841,1757448654235,-931.58,0.00015616,2]
[384516843,1757448654244,-1009.24,0.00015616,2]
[384516845,1757448654254,-480.0,0.00015616,2]
[384516847,1757448654263,-485.88,0.00015616,2]
[384516849,1757448654272,-1432.45,0.00015616,2]
[384516851,1757448654281,-761.17,0.00015616,2]
[384516853,1757448654291,-480.0,0.00015616,2]
[384516855,1757448654301,-1808.68,0.00015616,2]
[384516857,1757448654310,-9732.68,0.00015616,2]
[384516859,1757448654320,-2826.09,0.00015616,2]
[384516861,1757448654329,-480.0,0.00015616,2]
[384516863,1757448654339,-557.6,0.00015616,2]
[384516865,1757448654348,-480.0,0.00015616,2]
[384516867,1757448654357,-534.79,0.00015616,2]
[384516869,1757448654367,-2529.76,0.00015616,2]
[384516871,1757448654377,-480.0,0.00015616,2]
[384516873,1757448654387,-1325.34,0.00015616,2]
[384516875,1757448654396,-625.4,0.00015616,2]
[384516877,1757448654405,-480.0,0.00015616,2]
[384516879,1757448654414,-1580.15,0.00015616,2]
[384516881,1757448654423,-5386.26,0.00015616,2]
[384516883,1757448654434,-601.49,0.00015616,2]
[384516885,1757448654444,-480.0,0.00015616,2]
[384516887,1757448654455,-480.0,0.00015616,2]
[384516889,1757448654464,-480.0,0.00015616,2]
[384516891,1757448654474,-729.92,0.00015616,2]
[384516893,1757448654486,-2409.72,0.00015616,2]
[384516896,1757448654496,-1317.06,0.00015616,2]
[384516898,1757448654506,-741.56,0.00015616,2]
[384516900,1757448654521,-480.0,0.00015616,2]
[384516902,1757448654531,-1043.82,0.00015616,2]
[384516904,1757448654540,-3463.14,0.00015616,2]
[384516906,1757448654550,-644.34,0.00015616,2]
[384516908,1757448654560,-1065.39,0.00015616,2]
[384516910,1757448654568,-2320.27,0.00015616,2]
[384516912,1757448654578,-722.49,0.00015616,2]
[384516914,1757448654588,-682.5,0.00015616,2]
[384516916,1757448654597,-480.0,0.00015616,2]
[384516918,1757448654607,-699.17,0.00015616,2]
[384516920,1757448654616,-876.83,0.00015616,2]
[384516922,1757448654626,-782.37,0.00015616,2]
[384516924,1757448654634,-1994.74,0.00015616,2]
[384516925,1757448654643,-480.0,0.00015616,2]
[384516927,1757448654653,-832.33,0.00015616,2]
[384516930,1757448654664,-454.88844212,0.00015616,2]
[384516932,1757448654673,-500.0,0.00015616,2]
[384516934,1757448654683,-2000.0,0.00015616,2]
[384516936,1757448654692,-1003.10320852,0.00015616,2]
[384516938,1757448654701,-2000.0,0.00015616,2]
[384516940,1757448654710,-500.0,0.00015616,2]
[384516942,1757448654720,-1000.0,0.00015648,2]
[384516944,1757448654729,-1000.0,0.00015648,2]
[384516946,1757448654739,-1000.0,0.00015648,2]
[384516948,1757448654748,-1000.0,0.00015648,2]
[384516950,1757448654758,-2000.0,0.000157,2]
[384516952,1757448654767,-1199.1355779,0.00015743,7]
[384516954,1757448654776,-1329.7456438,0.00015745,2]
[384516956,1757448654785,-11602.8103722,0.00015745,2]
[384516958,1757448654795,-178.81257733,0.00015752,2]
[384516960,1757448654804,-160.0,0.00015792,6]
[384516961,1757448654814,-618.0,0.0001589,2]
[384516964,1757448654824,-500.0,0.0001589,2]
[384516965,1757448654834,-480.0,0.0001589,2]
[384516967,1757448654844,-480.0,0.0001589,2]
[384516969,1757448654854,-189.1391207,0.0001589,2]
[384516971,1757448654863,-480.0,0.0001589,2]
[384516973,1757448654873,-480.0,0.0001589,2]
[384516976,1757448654882,-480.0,0.0001589,2]
[384516978,1757448654892,-589.73,0.0001589,2]
[384516979,1757448654902,-560.34,0.0001589,2]
[384516981,1757448654913,-480.0,0.0001589,2]
[384516983,1757448654923,-480.0,0.0001589,2]
[384516985,1757448654932,-480.0,0.0001589,2]
[384516987,1757448654941,-480.0,0.0001589,2]
[384516990,1757448654951,-490.87,0.0001589,2]
[384516992,1757448654963,-480.0,0.0001589,2]
[384516993,1757448654971,-480.0,0.0001589,2]
[384516996,1757448654981,-638.57,0.0001589,2]
[384516997,1757448654992,-676.04,0.0001589,2]
[384517000,1757448655002,-480.0,0.0001589,2]
[384517001,1757448655012,-746.4,0.0001589,2]
[384517004,1757448655021,-620.39,0.0001589,2]
[384517005,1757448655031,-613.34,0.0001589,2]
[384517008,1757448655042,-480.0,0.0001589,2]
[384517010,1757448655052,-480.0,0.0001589,2]
[384517011,1757448655061,-954.71,0.0001589,2]
[384517013,1757448655070,-480.0,0.0001589,2]
[384517015,1757448655079,-480.0,0.0001589,2]
[384517018,1757448655089,-576.55,0.0001589,2]
[384517019,1757448655098,-480.0,0.0001589,2]
[384517021,1757448655108,-510.33,0.0001589,2]
[384517023,1757448655118,-2503.08,0.0001589,2]
[384517026,1757448655127,-518.77,0.0001589,2]
[384517028,1757448655137,-516.69,0.0001589,2]
[384517030,1757448655147,-480.0,0.0001589,2]
[384517032,1757448655156,-22357.95,0.0001589,2]
[384517034,1757448655165,-480.0,0.0001589,2]
[384517036,1757448655176,-1152.01,0.0001589,2]
[384517038,1757448655186,-557.21,0.0001589,2]
[384517040,1757448655195,-1573.14,0.0001589,2]
[384517042,1757448655205,-985.1,0.0001589,2]
[384517044,1757448655215,-480.0,0.0001589,2]
[384517046,1757448655225,-480.0,0.0001589,2]
[384517048,1757448655235,-660.09,0.0001589,2]
[384517050,1757448655244,-3876.29,0.0001589,2]
[384517052,1757448655254,-309.96675292,0.0001589,2]
[384517065,1757448655373,-3041.54,0.0001589,2]
[384517068,1757448655383,-1841.66,0.0001589,2]
[384517070,1757448655392,-480.0,0.0001589,2]
[384517072,1757448655402,-480.0,0.0001589,2]
[384517074,1757448655412,-1077.09,0.0001589,2]
[384517076,1757448655421,-2598.11,0.0001589,2]
[384517078,1757448655430,-972.26,0.0001589,2]
[384517080,1757448655440,-732.93,0.0001589,2]
[384517082,1757448655449,-480.0,0.0001589,2]
[384517084,1757448655459,-765.84,0.0001589,2]
[384517086,1757448655468,-931.58,0.0001589,2]
[384517088,1757448655477,-1009.24,0.0001589,2]
[384517090,1757448655487,-480.0,0.0001589,2]
[384517091,1757448655496,-485.88,0.0001589,2]
[384517093,1757448655506,-1432.45,0.0001589,2]
[384517096,1757448655516,-761.17,0.0001589,2]
[384517097,1757448655525,-480.0,0.0001589,2]
[384517100,1757448655535,-1808.68,0.0001589,2]
[384517102,1757448655544,-9732.68,0.0001589,2]
[384517104,1757448655554,-2826.09,0.0001589,2]
[384517106,1757448655563,-480.0,0.0001589,2]
[384517107,1757448655573,-557.6,0.0001589,2]
[384517109,1757448655582,-480.0,0.0001589,2]
[384517110,1757448655592,-534.79,0.0001589,2]
[384517111,1757448655601,-2529.76,0.0001589,2]
[384517112,1757448655610,-480.0,0.0001589,2]
[384517113,1757448655620,-1325.34,0.0001589,2]
[384517114,1757448655629,-625.4,0.0001589,2]
[384517115,1757448655638,-480.0,0.0001589,2]
[384517116,1757448655647,-1580.15,0.0001589,2]
[384517117,1757448655657,-5386.26,0.0001589,2]
[384517118,1757448655666,-601.49,0.0001589,2]
[384517119,1757448655676,-480.0,0.0001589,2]
[384517120,1757448655689,-480.0,0.0001589,2]
[384517121,1757448655698,-480.0,0.0001589,2]
[384517122,1757448655708,-729.92,0.0001589,2]
[384517123,1757448655718,-2409.72,0.0001589,2]
[384517124,1757448655729,-1317.06,0.0001589,2]
[384517125,1757448655739,-741.56,0.0001589,2]
[384517126,1757448655748,-480.0,0.0001589,2]
[384517127,1757448655757,-1043.82,0.0001589,2]
[384517128,1757448655766,-3463.14,0.0001589,2]
[384517129,1757448655776,-644.34,0.0001589,2]
[384517131,1757448655786,-1065.39,0.0001589,2]
[384517133,1757448655796,-2320.27,0.0001589,2]
[384517135,1757448655806,-722.49,0.0001589,2]
[384517137,1757448655815,-682.5,0.0001589,2]
[384517139,1757448655824,-480.0,0.0001589,2]
[384517141,1757448655834,-699.17,0.0001589,2]
[384517143,1757448655844,-876.83,0.0001589,2]
[384517145,1757448655854,-782.37,0.0001589,2]
[384517147,1757448655863,-1994.74,0.0001589,2]
[384517149,1757448655872,-384.03981447,0.0001589,2]
[384517151,1757448655882,-832.33,0.0001589,2]
[384517153,1757448655893,-3000.0,0.00016,2]
[384517155,1757448655902,-1629.154184,0.00016,2]
[384517157,1757448655913,-3000.0,0.0001601,2]
[384517159,1757448655923,-500.0,0.00016018,2]
[384517161,1757448655932,-3000.0,0.0001602,2]
[384517163,1757448655942,-3000.0,0.0001603,2]
[384517165,1757448655951,-3000.0,0.0001604,2]
[384517167,1757448655962,-360.0,0.00016042,2]
[384517169,1757448655971,-3000.0,0.0001605,2]
[384517171,1757448655981,-3000.0,0.0001606,2]
[384517173,1757448655990,-11269.21372713,0.00016064,2]
[384517175,1757448656000,-3000.0,0.0001607,2]
[384517177,1757448656009,-3000.0,0.0001608,2]
[384517179,1757448656018,-3000.0,0.0001609,2]
[384517181,1757448656028,-3000.0,0.000161,2]
[384517183,1757448656039,-2258.0198642,0.0001611,2]
[384517199,1757448656182,-741.9801358,0.0001611,2]
[384517201,1757448656192,-3000.0,0.0001612,2]
[384517203,1757448656201,-3000.0,0.0001613,2]
[384517205,1757448656211,-12500.0,0.00016138,7]
[384517207,1757448656220,-3000.0,0.0001614,2]
[384517209,1757448656229,-417.15472785,0.0001614,7]
[384517211,1757448656238,-296.7063584,0.0001614,2]
[384517213,1757448656248,-2588.9369365,0.0001614,2]
[384517215,1757448656257,-12500.0,0.00016146,7]
[384517217,1757448656266,-3000.0,0.0001615,2]
[384517219,1757448656275,-12500.0,0.00016155,7]
[384517221,1757448656284,-3000.0,0.0001616,2]
[384517223,1757448656293,-618.0,0.00016164,2]
[384517225,1757448656301,-500.0,0.00016164,2]
[384517227,1757448656315,-480.0,0.00016164,2]
[384517230,1757448656331,-480.0,0.00016164,2]
[384517232,1757448656346,-480.0,0.00016164,2]
[384517235,1757448656357,-393.10521462,0.00016164,2]
[384517237,1757448656372,-480.0,0.00016164,2]
[384517240,1757448656386,-589.73,0.00016164,2]
[384517242,1757448656400,-560.34,0.00016164,2]
[384517245,1757448656415,-480.0,0.00016164,2]
[384517247,1757448656429,-480.0,0.00016164,2]
[384517250,1757448656444,-480.0,0.00016164,2]
[384517252,1757448656456,-480.0,0.00016164,2]
[384517254,1757448656469,-490.87,0.00016164,2]
[384517257,1757448656481,-480.0,0.00016164,2]
[384517259,1757448656496,-480.0,0.00016164,2]
[384517262,1757448656511,-638.57,0.00016164,2]
[384517264,1757448656524,-676.04,0.00016164,2]
[384517266,1757448656535,-480.0,0.00016164,2]
[384517269,1757448656547,-746.4,0.00016164,2]
[384517271,1757448656561,-620.39,0.00016164,2]
[384517274,1757448656575,-613.34,0.00016164,2]
[384517276,1757448656588,-480.0,0.00016164,2]
[384517279,1757448656603,-480.0,0.00016164,2]
[384517281,1757448656618,-954.71,0.00016164,2]
[384517284,1757448656630,-480.0,0.00016164,2]
[384517286,1757448656641,-480.0,0.00016164,2]
[384517288,1757448656652,-576.55,0.00016164,2]
[384517290,1757448656665,-480.0,0.00016164,2]
[384517293,1757448656680,-12500.0,0.00016164,7]
[384517295,1757448656693,-510.33,0.00016164,2]
[384517297,1757448656705,-2503.08,0.00016164,2]
[384517300,1757448656717,-518.77,0.00016164,2]
[384517302,1757448656731,-516.69,0.00016164,2]
[384517304,1757448656741,-480.0,0.00016164,2]
[384517307,1757448656752,-9587.52012994,0.00016164,2]
[384517330,1757448656969,-480.0,0.00013698,2]
[384517333,1757448656982,-321.108079,0.00013698,2]
[384517335,1757448656995,-321.108079,0.00013964,2]
[384517337,1757448657007,-255.11032904,0.00013964,2]
[384517371,1757448657315,-480.0,0.00013698,2]
[384517373,1757448657324,-321.108079,0.00013698,2]
[384517375,1757448657334,-480.0,0.00013698,2]
[384517377,1757448657343,-230.6,0.00013698,2]
[384517379,1757448657352,-158.47569586,0.00013698,2]
[384517381,1757448657362,-480.0,0.00013698,2]
[384517383,1757448657371,-29.36533235,0.00013964,2]
[384517385,1757448657383,-36.63241761,0.00013964,2]
[384517387,1757448657392,-321.108079,0.00013964,2]
[384517389,1757448657401,-212.25950239,0.00013972,2]
[384517420,1757448657692,-480.0,0.00013698,2]
[384517422,1757448657701,-480.0,0.00013698,2]
[384517424,1757448657711,-108.84857661,0.00013972,2]
[384517426,1757448657720,-321.108079,0.00013972,2]
[384517428,1757448657731,-602.22094531,0.00013972,2]
[384517430,1757448657743,-321.108079,0.00013972,2]
[384517432,1757448657753,-321.108079,0.00013972,2]
[384517434,1757448657765,-480.0,0.00013972,2]
[384517436,1757448657775,-229.8458364,0.00013972,2]
[384517623,1757448659588,155.90967631,0.00013561,2]
[384517638,1757448660282,155.90967631,0.00013425,2]
[384517674,1757448684676,2460.37772059,0.00013557,2]
[384517675,1757448692640,335.62409711,0.0001299,2]
[384517676,1757448692668,10000.01,0.0001299,2]
[384517677,1757448692691,10000.01,0.0001299,2]
[384517678,1757448692714,6176.64437219,0.0001299,2]
[384517680,1757448708793,854.68671528,0.00013557,2]
[384517681,1757448713386,2968.67891253,0.00013596,2]
[384517682,1757448713408,10000.01,0.00013596,2]
[384517683,1757448713430,10000.01,0.00013596,2]
[384517684,1757448713451,10000.01,0.00013596,2]
[384517685,1757448713474,10000.01,0.00013596,2]
[384517689,1757448790166,836.2,0.00012329,2]
[384517692,1757448965603,195.9,0.00012329,2]
[384517693,1757448975912,163.25,0.00012329,2]
[384517694,1757448986340,174.04,0.00012329,2]
[384517695,1757448996999,870.2,0.00012329,2]
[384517706,1757449443606,-277.61649999,0.00013224,2]
[384517707,1757449445245,-80.94402588,0.00013224,2]
[384517709,1757449458607,-224.63839675,0.00013219,2]
[384517727,1757449648772,224.63839675,0.00013087,2]
[384517730,1757449678581,224.63839675,0.00013087,2]
[384517741,1757449832875,-184.50233712,0.00013355,2]
[384517742,1757449832884,-244.46821519,0.00013488,2]
[384517743,1757449832893,-184.50233712,0.00013488,2]
[384517744,1757449832902,-184.50233711,0.00013492,2]
[384517745,1757449832912,-184.50233711,0.00013496,2]
[384517746,1757449832921,-935.0,0.00013572,2]
[384517747,1757449832931,-500.0,0.00013573,2]
[384517748,1757449832940,-500.41529121,0.00013573,2]
[384517749,1757449832949,-3394.22943178,0.00013573,2]
[384518243,1757449838482,-4207.58765706,0.00013573,2]
[384518244,1757449838496,-500.0,0.00013587,2]
[384518245,1757449838508,-500.0,0.00013587,2]
[384518246,1757449838521,-745.71758878,0.00013587,2]
[384518247,1757449838533,-500.0,0.00013587,2]
[384518248,1757449838546,-234.41114981,0.00013587,2]
[384518249,1757449838560,-500.0,0.00013587,2]
[384518250,1757449838572,-745.71758878,0.00013587,2]
[384518251,1757449838584,-500.0,0.00013587,2]
[384518252,1757449838596,-745.71758878,0.00013587,2]
[384518253,1757449838608,-500.0,0.00013587,2]
[384518254,1757449838620,-745.71758878,0.00013587,2]
[384518255,1757449838631,-274.82907346,0.00013587,2]
[384518256,1757449838643,-745.71758878,0.00013587,2]
[384518257,1757449838655,-500.0,0.00013587,2]
[384518258,1757449838667,-745.71758878,0.00013587,2]
[384518259,1757449838677,-745.71758878,0.00013587,2]
[384518260,1757449838687,-500.0,0.00013587,2]
[384518261,1757449838696,-745.71758878,0.00013587,2]
[384518262,1757449838706,-745.71758878,0.00013587,2]
[384518263,1757449838715,-500.0,0.00013587,2]
[384518264,1757449838725,-745.71758878,0.00013587,2]
[384518265,1757449838735,-745.71758878,0.00013587,2]
[384518266,1757449838744,-218.0,0.00013587,2]
[384518267,1757449838754,-745.71758878,0.00013587,2]
[384518268,1757449838964,-745.71758878,0.00013587,2]
[384518272,1757449838986,-745.71758878,0.00013587,2]
[384518273,1757449838998,-745.71758878,0.00013587,2]
[384518274,1757449839009,-745.71758878,0.00013587,2]
[384518275,1757449839018,-745.71758878,0.00013587,2]
[384518276,1757449839028,-745.71758878,0.00013587,2]
[384518277,1757449839037,-745.71758878,0.00013587,2]
[384518278,1757449839046,-745.71758878,0.00013587,2]
[384518279,1757449839056,-745.71758878,0.00013587,2]
[384518280,1757449839065,-745.71758878,0.00013587,2]
[384518281,1757449839075,-745.71758878,0.00013587,2]
[384518282,1757449839084,-745.71758878,0.00013587,2]
[384518283,1757449839094,-745.71758878,0.00013587,2]
[384518284,1757449839103,-745.71758878,0.00013587,2]
[384518285,1757449839113,-745.71758878,0.00013587,2]
[384518286,1757449839122,-745.71758878,0.00013587,2]
[384518287,1757449839131,-745.71758878,0.00013587,2]
[384518288,1757449839141,-745.71758878,0.00013587,2]
[384518289,1757449839151,-745.71758878,0.00013587,2]